bitfinex/quotes_ETHUSD_20250328
["timestamp","ask_amount","ask_price","bid_price","bid_amount"]
[1743186960098,15.19783105,1881.0,1880.7,0.25359437]
[1743186960597,20.51434105,1881.0,1880.7,0.25359437]
[1743186961172,5.31663,1880.9,1880.7,0.25359437]
[1743186961371,18.97648105,1880.8,1880.7,0.25359437]
[1743186961568,5.31813,1880.4,1880.2,0.7982]
[1743186961772,9.13963105,1880.4,1880.3,5.36041421]
[1743186962082,5.31813,1880.4,1880.3,5.36041421]
[1743186964271,5.31813,1880.4,1880.3,0.25441421]
[1743186964473,5.31813,1880.4,1880.3,5.36041421]
[1743186964693,5.31813,1880.4,1880.3,5.106]
[1743186964875,5.31813,1880.4,1880.3,5.36445055]
[1743186965505,9.13963105,1880.4,1880.3,5.36445055]
[1743186968118,9.13963105,1880.4,1880.3,0.25845055]
[1743186968359,13.29100701,1880.8,1880.5,5.31762]
[1743186968360,6.06,1880.8,1880.5,5.31762]
[1743186968492,6.06,1880.9,1880.6,6.649482]
[1743186968821,11.37671,1880.9,1880.7,5.106]
[1743186969020,15.19821105,1880.9,1880.7,5.106]
[1743186969328,15.19821105,1880.9,1880.8,0.25983811]
[1743186971628,6.06,1880.9,1880.8,0.25983811]
[1743186972247,11.3766,1880.9,1880.8,0.25983811]
[1743186972403,15.19810105,1880.9,1880.8,0.25983811]
[1743186975399,8.70687265,1881.3,1880.8,0.25983811]
[1743186975400,11.37577,1881.2,1880.8,6.93997192]
[1743186975700,6.06,1881.2,1881.1,0.8267]
[1743186975909,6.06,1881.2,1881.1,6.18723162]
[1743186976109,6.06,1881.2,1881.1,7.33756678]
[1743186976722,6.06,1881.2,1881.1,5.36053162]
[1743186976923,15.19725105,1881.2,1881.1,5.36053162]
[1743186979849,15.19725105,1881.2,1881.1,0.25453162]
[1743186982237,18.19725105,1881.2,1881.1,0.25453162]
[1743186988760,19.57355105,1881.2,1881.1,1.62e-06]
[1743186988965,5.31688,1880.8,1880.7,5.104]
[1743186989165,5.31716,1880.7,1880.6,5.104]
[1743186989323,9.13866105,1880.7,1880.6,5.104]
[1743186990561,5.31858,1880.2,1880.1,28.191]
[1743186990733,9.13980105,1880.3,1880.1,33.296]
[1743186990960,5.3183,1880.3,1880.1,33.296]
[1743186993691,5.31858,1880.2,1880.1,33.296]
[1743186996590,5.31858,1880.2,1880.1,33.50768938]
[1743186997389,9.14008105,1880.2,1880.1,33.50768938]
[1743186997894,16.69684,1880.3,1880.1,33.50768938]
[1743186998390,6.06,1880.3,1880.1,36.93661832]
[1743186998560,6.06,1880.3,1880.2,0.8041]
[1743186998893,6.06,1880.3,1880.2,1.01623033]
[1743186999450,6.06,1880.3,1880.2,0.21213033]
[1743186999887,6.06,1880.3,1880.1,34.0563]
[1743187000053,11.37813,1880.4,1880.2,0.21213033]
[1743187000454,5.31858,1880.2,1880.1,5.9153]
[1743187000875,5.31839,1880.3,1880.1,5.9153]
[1743187004655,6.06,1880.4,1880.1,6.50683]
[1743187005050,6.06,1880.4,1880.1,11.82547]
[1743187005289,11.37805,1880.4,1880.1,11.82547]
[1743187005668,11.37805,1880.4,1880.1,6.50683]
[1743187006593,5.3184,1880.3,1880.1,5.9153]
[1743187007389,11.37805,1880.4,1880.1,5.9153]
[1743187008079,16.69627,1880.4,1880.1,5.9153]
[1743187008280,20.51777105,1880.4,1880.1,5.9153]
[1743187008793,15.19955105,1880.4,1880.1,5.9153]
[1743187009585,11.37805,1880.4,1880.2,0.21603416]
[1743187009789,16.69626,1880.4,1880.1,5.9153]
[1743187009993,11.37805,1880.4,1880.2,0.21603416]
[1743187010161,11.37805,1880.4,1880.1,5.9153]
[1743187010360,11.37805,1880.4,1880.2,0.21603416]
[1743187010580,11.37805,1880.4,1880.1,5.9153]
[1743187010581,16.69626,1880.4,1880.1,5.9153]
[1743187010783,16.69626,1880.4,1880.2,0.21603416]
[1743187010987,11.37805,1880.4,1880.1,5.9153]
[1743187011190,11.37805,1880.4,1880.2,0.21603416]
[1743187011398,6.06,1880.4,1880.1,11.23404]
[1743187011693,15.19932105,1880.5,1880.2,0.21603416]
[1743187012058,11.37782,1880.5,1880.1,12.357462]
[1743187012295,11.37782,1880.5,1880.3,0.21603416]
[1743187012464,16.6958,1880.5,1880.1,11.23404]
[1743187012664,16.6958,1880.5,1880.4,0.21603416]
[1743187012980,15.19932105,1880.5,1880.4,0.21603416]
[1743187013180,20.51724105,1880.5,1880.1,11.23404]
[1743187013393,20.51724105,1880.5,1880.2,0.21603416]
[1743187013558,20.51724105,1880.5,1880.1,12.889336]
[1743187013758,20.51724105,1880.5,1880.2,0.21603416]
[1743187013954,11.37782,1880.5,1880.2,5.31854]
[1743187014195,6.06,1880.5,1880.3,0.21603416]
[1743187014371,6.06,1880.5,1880.2,10.63694]
[1743187014690,6.06,1880.5,1880.3,1.27972816]
[1743187014896,11.37776,1880.5,1880.3,0.21603416]
[1743187015194,11.37776,1880.5,1880.2,5.3184]
[1743187015393,11.37776,1880.5,1880.3,0.21603416]
[1743187015693,11.37776,1880.5,1880.2,5.3184]
[1743187015859,11.37776,1880.5,1880.4,0.21603416]
[1743187016069,11.37776,1880.5,1880.2,5.3184]
[1743187016413,9.13962105,1880.4,1880.1,7.570596]
[1743187016578,9.13962105,1880.4,1880.2,0.21603416]
[1743187016783,9.13962105,1880.4,1880.1,5.9153]
[1743187016994,9.13962105,1880.4,1880.2,0.21603416]
[1743187017189,9.13962105,1880.4,1880.1,5.9153]
[1743187017515,9.13962105,1880.4,1880.2,0.21603416]
[1743187017809,15.19926105,1880.5,1880.1,11.23406]
[1743187018016,15.19926105,1880.5,1880.2,0.21540428]
[1743187018177,9.95046105,1880.4,1880.1,5.155]
[1743187018380,5.3183,1880.3,1880.2,0.21540428]
[1743187018594,5.3183,1880.3,1880.1,5.155]
[1743187018789,5.3183,1880.3,1880.2,0.21540428]
[1743187018990,6.12879,1880.4,1880.1,5.155]
[1743187019314,5.31809,1880.4,1880.2,0.21540428]
[1743187019511,10.6363,1880.4,1880.2,0.21540428]
[1743187019727,5.31809,1880.4,1880.1,5.155]
[1743187020219,10.6363,1880.4,1880.2,0.21540428]
[1743187020408,10.6363,1880.4,1880.1,5.155]
[1743187020614,6.14932,1880.3,1880.2,0.21540428]
[1743187020781,9.97082105,1880.3,1880.2,5.104]
[1743187020997,9.97082105,1880.3,1880.2,5.31940428]
[1743187022117,5.31842,1880.3,1880.2,5.31940428]
[1743187022519,5.31812,1880.4,1880.2,5.31940428]
[1743187024310,11.37775,1880.5,1880.2,5.31940428]
[1743187024702,5.31806,1880.4,1880.2,5.31940428]
[1743187026739,15.19927105,1880.5,1880.2,5.31940428]
[1743187026900,5.31811,1880.4,1880.2,5.31940428]
[1743187027103,9.13980105,1880.3,1880.2,5.31940428]
[1743187027652,5.31808,1880.4,1880.2,5.31940428]
[1743187027828,10.63628,1880.4,1880.2,5.31940428]
[1743187028137,5.3183,1880.3,1880.2,5.31940428]
[1743187028734,9.96000105,1880.3,1880.2,5.31940428]
[1743187029806,5.3183,1880.3,1880.2,5.31940428]
[1743187032432,9.13980105,1880.3,1880.2,5.31940428]
[1743187033944,5.3183,1880.3,1880.2,5.31940428]
[1743187035745,9.13958105,1880.4,1880.2,5.31940428]
[1743187035943,5.3183,1880.3,1880.2,5.31940428]
[1743187037144,5.31808,1880.4,1880.2,5.31940428]
[1743187037512,5.3183,1880.3,1880.2,5.31940428]
[1743187038022,10.63632,1880.4,1880.2,5.31940428]
[1743187038227,5.3183,1880.3,1880.2,5.31940428]
[1743187038415,5.3183,1880.3,1880.2,6.08100428]
[1743187038615,11.37784,1880.5,1880.2,6.08100428]
[1743187040549,6.06,1880.5,1880.2,11.39952428]
[1743187040748,6.06,1880.5,1880.2,13.07634571]
[1743187041045,5.3178,1880.5,1880.2,13.07634571]
[1743187041439,5.31813,1880.4,1880.2,6.08100428]
[1743187042054,9.13923105,1880.5,1880.2,6.08100428]
[1743187042456,5.31812,1880.4,1880.2,6.08100428]
[1743187042954,9.13980105,1880.3,1880.2,5.31940428]
[1743187043319,12.13980105,1880.3,1880.2,0.21540428]
[1743187043529,12.13980105,1880.3,1880.2,5.103]
[1743187043734,12.13980105,1880.3,1880.2,5.31834127]
[1743187046881,18.19980105,1880.3,1880.2,5.31834127]
[1743187054190,18.19980105,1880.3,1880.2,0.21534127]
[1743187054382,5.31858,1880.2,1880.1,5.152]
[1743187054581,9.14008105,1880.2,1880.1,5.36929398]
[1743187055361,5.31858,1880.2,1880.1,6.17329398]
[1743187056689,5.31858,1880.2,1880.1,5.36929398]
[1743187057995,6.06,1880.3,1880.2,0.8132]
[1743187058468,11.3783,1880.3,1880.2,0.21729398]
[1743187059099,11.3783,1880.3,1880.1,5.9723]
[1743187059288,11.3783,1880.3,1880.2,0.21729398]
[1743187059599,11.3783,1880.3,1880.1,5.9723]
[1743187059793,11.3783,1880.3,1880.2,0.21729398]
[1743187060095,11.3783,1880.3,1880.1,5.9723]
[1743187060299,5.31858,1880.2,1880.1,5.9723]
[1743187060783,11.3783,1880.3,1880.1,5.152]
[1743187061120,11.3783,1880.3,1880.2,0.7771]
[1743187061910,6.06,1880.3,1880.2,0.7771]
[1743187062608,11.3783,1880.3,1880.1,5.152]
[1743187062788,11.3783,1880.3,1880.1,5.9034]
[1743187065408,6.06,1880.3,1880.1,5.9034]
[1743187066315,11.37832,1880.3,1880.1,5.9034]
[1743187067418,16.69683,1880.3,1880.1,5.9034]
[1743187068034,11.37832,1880.3,1880.1,5.9034]
[1743187069520,11.37832,1880.3,1880.2,0.21697898]
[1743187069915,11.37832,1880.3,1880.1,5.9034]
[1743187070116,11.37832,1880.3,1880.2,0.21697898]
[1743187070430,16.69687,1880.3,1880.1,5.9034]
[1743187070627,5.31858,1880.2,1880.1,5.9034]
[1743187070829,5.31858,1880.2,1880.1,5.152]
[1743187071717,11.37832,1880.3,1880.1,5.152]
[1743187071718,16.69684,1880.3,1880.1,5.152]
[1743187071916,5.31858,1880.2,1880.1,5.152]
[1743187072728,8.37224804,1880.2,1880.1,0.05]
[1743187075016,11.37832,1880.3,1880.1,0.05]
[1743187075331,16.69684,1880.3,1880.1,0.05]
[1743187075531,11.37832,1880.3,1880.1,0.05]
[1743187076236,16.69681,1880.3,1880.1,0.05]
[1743187077523,11.37832,1880.3,1880.1,0.05]
[1743187077829,16.6969,1880.3,1880.1,0.05]
[1743187078436,5.31858,1880.2,1880.1,0.05]
[1743187081037,16.69683,1880.3,1880.1,0.05]
[1743187081555,5.31858,1880.2,1880.1,0.05]
[1743187082432,9.90452447,1880.2,1880.1,0.05]
[1743187082636,18.96452447,1880.2,1880.1,0.05]
[1743187083538,19.51452447,1880.2,1880.1,0.05]
[1743187083852,19.77581268,1880.2,1880.1,0.05]
[1743187084424,19.77581268,1880.2,1880.1,0.24819883]
[1743187085327,19.51452447,1880.2,1880.1,0.24819883]
[1743187085652,19.92296071,1880.2,1880.1,0.24819883]
[1743187086248,20.18463856,1880.2,1880.1,0.24819883]
[1743187090333,20.18463856,1880.2,1880.1,8.83e-06]
[1743187090533,20.18463856,1880.2,1880.1,0.18168299]
[1743187090728,5.31943,1879.9,1879.8,5.1]
[1743187090968,9.15477447,1879.9,1879.8,5.1]
[1743187093758,15.21477447,1879.9,1879.8,5.1]
[1743187097384,5.32028,1879.6,1879.4,28.147]
[1743187097552,5.32056,1879.5,1879.4,28.147]
[1743187097748,5.32056,1879.5,1879.4,33.247]
[1743187097983,5.32056,1879.5,1879.4,33.43610754]
[1743187098884,5.32056,1879.5,1879.4,0.18910754]
[1743187099182,19.02150447,1879.5,1879.4,0.18910754]
[1743187099498,5.32113,1879.3,1879.2,5.1]
[1743187099696,9.15647447,1879.3,1879.2,5.28910754]
[1743187099998,5.32113,1879.3,1879.2,5.28910754]
[1743187101884,9.15647447,1879.3,1879.2,5.28910754]
[1743187102687,15.21647447,1879.3,1879.2,5.28910754]
[1743187103779,11.38113,1879.3,1879.2,5.28910754]
[1743187106870,15.21647447,1879.3,1879.2,5.28910754]
[1743187107391,11.38113,1879.3,1879.2,5.28910754]
[1743187107973,6.06,1879.3,1879.2,5.28910754]
[1743187108184,11.38113,1879.3,1879.2,5.28910754]
[1743187110702,6.06,1879.3,1879.2,6.67484829]
[1743187110891,6.06,1879.3,1879.2,11.99625829]
[1743187112585,6.06,1879.3,1879.2,6.67484829]
[1743187113474,6.06,1879.3,1879.2,6.07010754]
[1743187114117,6.06,1879.3,1879.2,11.39151754]
[1743187114322,11.3803,1879.6,1879.2,16.71292754]
[1743187114688,11.3803,1879.6,1879.3,5.32109]
[1743187114891,11.3803,1879.6,1879.4,1.01086231]
[1743187115200,6.06,1879.6,1879.5,6.14896]
[1743187115903,6.06,1879.6,1879.5,6.34222231]
[1743187116700,5.31954,1879.9,1879.5,11.66262231]
[1743187116906,5.31954,1879.9,1879.6,5.099]
[1743187117291,5.31954,1879.9,1879.7,0.19326231]
[1743187117476,10.63918,1879.9,1879.6,5.099]
[1743187117675,10.63918,1879.9,1879.7,0.19326231]
[1743187117877,10.63918,1879.9,1879.6,5.099]
[1743187118089,5.31954,1879.9,1879.7,0.19326231]
[1743187118288,5.31954,1879.9,1879.6,5.099]
[1743187118507,5.31954,1879.9,1879.7,0.19326231]
[1743187118721,5.31954,1879.9,1879.6,5.099]
[1743187118907,5.31954,1879.9,1879.7,1.02246231]
[1743187119306,10.63919,1879.9,1879.7,1.02246231]
[1743187119709,5.31954,1879.9,1879.7,1.02246231]
[1743187128621,6.06,1880.1,1879.8,5.31969]
[1743187128919,6.06,1880.1,1879.9,6.25963644]
[1743187129126,11.37859,1880.2,1880.0,5.098]
[1743187129490,9.06,1880.2,1880.1,0.18822644]
[1743187129705,5.31803,1880.4,1880.2,0.7978]
[1743187129914,5.31803,1880.4,1880.3,0.1881635]
[1743187130185,5.31774,1880.5,1880.2,0.7978]
[1743187130385,6.06,1880.6,1880.3,0.1881635]
[1743187130386,11.37752,1880.6,1880.3,0.1881635]
[1743187130690,11.37752,1880.6,1880.4,5.097]
[1743187130691,6.06,1880.6,1880.4,5.097]
[1743187130913,6.06,1880.6,1880.5,0.9435635]
[1743187132090,5.31725,1880.7,1880.5,6.2612635]
[1743187132091,6.06,1880.7,1880.5,6.2612635]
[1743187132286,6.06,1880.7,1880.6,0.62612635]
[1743187132520,6.06,1880.7,1880.6,0.80894171]
[1743187132824,6.06,1880.7,1880.6,0.18281536]
[1743187133743,11.37716,1880.7,1880.6,0.18281536]
[1743187134137,5.31773,1880.5,1880.4,5.097]
[1743187134607,5.31773,1880.5,1880.4,5.27862041]
[1743187135034,6.06,1880.7,1880.4,11.38792041]
[1743187135233,6.06,1880.7,1880.6,0.7739]
[1743187135546,5.33986282,1880.7,1880.6,0.95583484]
[1743187135828,5.33986282,1880.7,1880.6,6.27328484]
[1743187136336,5.33986282,1880.7,1880.6,0.95583484]
[1743187136524,5.33986282,1881.2,1880.7,0.7511]
[1743187136700,5.33986282,1881.2,1881.0,6.06731]
[1743187136899,5.31503,1881.5,1881.1,6.10453873]
[1743187137100,5.31503,1881.5,1881.2,5.095]
[1743187137331,5.31503,1881.5,1881.3,0.17627483]
[1743187138149,5.31503,1881.5,1881.3,1.00587483]
[1743187138607,5.31519,1881.4,1881.3,0.17627483]
[1743187142520,9.15053447,1881.4,1881.3,5.27027483]
[1743187142860,5.31519,1881.4,1881.3,5.27027483]
[1743187143255,5.31519,1881.4,1881.3,0.17627483]
[1743187143461,5.31519,1881.4,1881.3,5.26927483]
[1743187143667,5.31519,1881.4,1881.3,5.093]
[1743187143824,5.31519,1881.4,1881.3,5.26682336]
[1743187145263,9.15053447,1881.4,1881.3,5.26682336]
[1743187145766,5.31519,1881.4,1881.3,5.26682336]
[1743187146065,9.15053447,1881.4,1881.3,5.26682336]
[1743187146647,14.49039729,1881.4,1881.3,5.26682336]
[1743187149074,10.65505282,1881.4,1881.3,6.04812336]
[1743187149587,10.65505282,1881.4,1881.3,5.26682336]
[1743187150264,15.28889729,1881.4,1881.3,5.26682336]
[1743187151295,18.28889729,1881.4,1881.3,0.17382336]
[1743187151485,0.8073,1881.1,1880.5,28.8873]
[1743187151640,8.3166,1880.9,1880.8,5.092]
[1743187152954,12.15194447,1880.9,1880.8,5.092]
[1743187154583,5.31745,1880.6,1880.5,28.8873]
[1743187154782,5.31745,1880.6,1880.5,33.9793]
[1743187154985,5.31745,1880.6,1880.5,5.8443]
[1743187158992,5.31745,1880.6,1880.5,5.98684666]
[1743187161194,5.3172,1880.7,1880.5,5.98684666]
[1743187162085,5.31745,1880.6,1880.5,5.23454666]
[1743187162468,5.31745,1880.6,1880.5,0.14254666]
[1743187162685,5.31745,1880.6,1880.1,6.37825002]
[1743187162686,5.31852,1880.3,1880.1,0.7858]
[1743187162980,10.6371,1880.3,1880.2,5.23454666]
[1743187164485,10.6371,1880.3,1880.2,0.14254666]
[1743187164679,18.29974447,1880.3,1880.2,5.23554666]
[1743187164967,18.29974447,1880.3,1880.2,0.15008182]
[1743187164968,23.83960729,1880.3,1880.2,0.15008182]
[1743187165413,8.31886,1880.1,1880.0,5.093]
[1743187165612,12.15420447,1880.1,1880.0,5.093]
[1743187165797,12.15420447,1880.1,1880.0,5.24490369]
[1743187166119,12.92210447,1880.1,1880.0,0.15190369]
[1743187166480,8.31914,1880.0,1879.9,5.093]
[1743187166681,12.15448447,1880.0,1879.9,5.24584625]
[1743187170115,17.49434729,1880.0,1879.9,5.24584625]
[1743187170319,17.49434729,1880.0,1879.9,0.15284625]
[1743187170608,5.32084,1879.4,1879.3,0.7547]
[1743187170811,5.32084,1879.4,1879.3,5.8477]
[1743187171106,5.32084,1879.4,1879.3,0.15454324]
[1743187171282,9.15618447,1879.4,1879.3,0.15454324]
[1743187171487,5.32141,1879.2,1879.1,28.8947]
[1743187171713,5.32141,1879.2,1879.1,33.9877]
[1743187172913,5.32141,1879.2,1879.1,5.8477]
[1743187174310,5.32141,1879.2,1879.1,6.00243183]
[1743187178824,5.32141,1879.2,1879.1,0.15473183]
[1743187179012,9.15675447,1879.2,1879.1,5.24973183]
[1743187179309,9.15675447,1879.2,1879.1,5.095]
[1743187179512,9.15675447,1879.2,1879.1,5.25941201]
[1743187180816,5.32141,1879.2,1879.1,5.25941201]
[1743187181217,5.32116,1879.3,1879.1,5.25941201]
[1743187181391,10.64252,1879.3,1879.1,5.25941201]
[1743187181916,5.32141,1879.2,1879.1,5.25941201]
[1743187184689,10.66127282,1879.2,1879.1,5.25941201]
[1743187190625,10.66127282,1879.2,1879.1,5.095]
[1743187191027,10.66127282,1879.2,1879.1,5.26117301]
[1743187192325,14.49661729,1879.2,1879.1,5.26117301]
[1743187193027,15.31091729,1879.2,1879.1,5.26117301]
[1743187193528,18.31091729,1879.2,1879.1,5.26117301]
[1743187196402,17.49661729,1879.2,1879.1,5.26117301]
[1743187196597,13.66127282,1879.2,1879.1,5.26117301]
[1743187197341,17.49661729,1879.2,1879.1,5.26117301]
[1743187199514,13.66127282,1879.2,1879.1,5.26117301]
[1743187204747,10.66127282,1879.2,1879.1,5.26117301]
[1743187208220,10.66127282,1879.2,1879.1,0.16617301]
[1743187208412,10.66127282,1879.2,1879.1,5.26117301]
[1743187208612,10.66127282,1879.2,1879.1,5.095]
[1743187208850,10.66127282,1879.2,1879.1,5.26400378]
[1743187214823,5.33986282,1879.2,1879.1,5.26400378]
[1743187215026,5.33986282,1879.5,1879.1,11.88489416]
[1743187215237,10.66052282,1879.5,1879.3,0.7728]
[1743187215768,10.66052282,1879.5,1879.4,0.1675569]
[1743187219566,5.33986282,1879.5,1879.4,0.1675569]
[1743187220766,10.66042282,1879.5,1879.4,5.2605569]
[1743187221146,10.66042282,1879.5,1879.4,5.093]
[1743187221344,10.66042282,1879.5,1879.4,5.260494]
[1743187221549,15.32536729,1879.5,1879.4,0.167494]
[1743187221854,5.32084,1879.4,1879.3,5.093]
[1743187222171,10.66042282,1879.5,1879.3,5.24321449]
[1743187222665,15.98119282,1879.5,1879.3,5.24321449]
[1743187222874,10.66042282,1879.5,1879.3,5.24321449]
[1743187223371,5.32084,1879.4,1879.3,5.24321449]
[1743187223673,10.66052282,1879.5,1879.3,5.24321449]
[1743187224349,15.98129282,1879.5,1879.3,5.24321449]
[1743187225562,15.98130282,1879.5,1879.3,5.24321449]
[1743187225772,5.33986282,1879.5,1879.3,5.84537594]
[1743187226454,5.33986282,1879.5,1879.4,0.769]
[1743187226858,5.33986282,1879.5,1879.4,0.9188376]
[1743187228645,5.33986282,1879.5,1879.4,6.2396776]
[1743187229451,10.65936282,1879.9,1879.5,5.3205]
[1743187229652,10.65936282,1879.9,1879.6,1.32615]
[1743187229852,10.65936282,1879.9,1879.7,5.093]
[1743187230055,10.65936282,1879.9,1879.7,5.24208388]
[1743187230252,5.31971,1879.8,1879.7,0.14908388]
[1743187230458,9.15505447,1879.8,1879.7,5.24108388]
[1743187230659,5.31971,1879.8,1879.7,5.092]
[1743187230839,5.31971,1879.8,1879.7,5.24108388]
[1743187231403,9.15505447,1879.8,1879.7,5.35217502]
[1743187231542,5.31971,1879.8,1879.7,5.35217502]
[1743187231738,9.15505447,1879.8,1879.7,5.35217502]
[1743187232178,18.25381729,1879.8,1879.7,5.35217502]
[1743187232478,6.07946,1879.5,1879.4,5.092]
[1743187232690,14.41934282,1879.5,1879.0,28.9798]
[1743187232883,18.25468729,1879.5,1879.4,0.25967248]
[1743187233293,18.25468729,1879.5,1879.1,5.092]
[1743187233294,5.32141,1879.2,1879.1,5.092]
[1743187234649,5.32141,1879.2,1879.1,5.3526147]
[1743187235387,5.32113,1879.3,1879.1,5.3526147]
[1743187235586,10.64248,1879.3,1879.1,5.3526147]
[1743187236084,5.32141,1879.2,1879.1,5.3526147]
[1743187241100,5.32126,1879.3,1879.1,5.3526147]
[1743187241309,10.6426,1879.3,1879.1,5.3526147]
[1743187241469,5.32126,1879.3,1879.1,5.3526147]
[1743187241806,5.32141,1879.2,1879.1,5.3526147]
[1743187242780,5.32126,1879.3,1879.1,5.3526147]
[1743187242982,5.32085,1879.4,1879.2,0.7895]
[1743187243184,5.32085,1879.4,1879.3,0.2609288]
[1743187243402,13.66043282,1879.5,1879.3,0.2609288]
[1743187243702,8.33986282,1879.5,1879.3,0.2609288]
[1743187244071,5.33986282,1879.5,1879.4,6.11994]
[1743187244283,5.33986282,1879.5,1879.4,5.32084]
[1743187244620,5.33986282,1879.5,1879.4,6.38347382]
[1743187245704,5.33986282,1879.5,1879.4,6.15463382]
[1743187246000,5.33986282,1879.5,1879.4,5.35393382]
[1743187247800,5.28986282,1879.5,1879.4,5.35393382]
[1743187249101,10.61042282,1879.5,1879.4,5.35393382]
[1743187249278,10.61042282,1879.5,1879.4,5.35293382]
[1743187250010,5.28986282,1879.5,1879.4,5.35293382]
[1743187251586,10.61042282,1879.5,1879.4,5.35293382]
[1743187255114,5.28986282,1879.5,1879.4,5.35293382]
[1743187256453,10.61042282,1879.5,1879.4,5.35293382]
[1743187263794,5.28986282,1879.5,1879.4,5.35293382]
[1743187264119,5.28986282,1879.5,1879.4,5.8882272]
[1743187264825,5.28986282,1879.5,1879.4,6.6932272]
[1743187265422,5.28986282,1879.5,1879.4,5.8882272]
[1743187267339,10.61042282,1879.5,1879.4,5.35193382]
[1743187268350,10.61042282,1879.5,1879.4,0.26193382]
[1743187268533,14.43212282,1879.5,1879.4,5.35193382]
[1743187268737,5.32123,1879.3,1878.9,5.32214]
[1743187268967,10.6432,1879.2,1879.0,5.09]
[1743187269146,5.32169,1879.1,1879.0,5.09]
[1743187269856,5.32147,1879.2,1879.0,7.049]
[1743187270624,5.32147,1879.2,1879.0,5.09]
[1743187273445,10.6431,1879.2,1879.0,5.09]
[1743187275043,5.32169,1879.1,1879.0,5.09]
[1743187276432,5.3221,1879.0,1878.8,0.7566]
[1743187276631,5.32226,1878.9,1878.6,0.8308]
[1743187276831,5.32226,1878.9,1878.7,5.09]
[1743187279456,5.32226,1878.9,1878.8,0.21879846]
[1743187281657,5.32193,1879.1,1878.8,0.21879846]
[1743187281827,5.32193,1879.1,1878.9,0.7517]
[1743187282340,5.32193,1879.1,1879.0,0.21879846]
[1743187282853,8.32151,1879.2,1879.0,0.21879846]
[1743187283161,8.32151,1879.2,1879.1,5.09]
[1743187283457,8.32151,1879.2,1879.1,5.31105579]
[1743187293446,12.15685447,1879.2,1879.1,5.31005579]
[1743187293662,12.94485447,1879.2,1879.1,5.31005579]
[1743187293988,9.10951,1879.2,1879.1,5.31005579]
[1743187294142,22.07006176,1879.2,1879.1,5.79e-06]
[1743187294342,22.62006176,1879.2,1879.1,4.46e-06]
[1743187294532,6.12984,1878.8,1878.7,5.089]
[1743187294736,9.96518447,1878.8,1878.7,5.089]
[1743187294936,9.96518447,1878.8,1878.7,5.25740704]
[1743187295758,12.96518447,1878.8,1878.7,5.25740704]
[1743187295958,13.37288929,1878.8,1878.7,5.25740704]
[1743187299172,18.66275211,1878.8,1878.7,0.16840704]
[1743187299551,5.32311,1878.6,1878.5,5.089]
[1743187299750,10.61297282,1878.6,1878.5,5.089]
[1743187299962,5.32424,1878.2,1878.1,0.05]
[1743187300150,14.44944729,1878.2,1878.1,0.05]
[1743187300762,17.44944729,1878.2,1878.1,0.05]
[1743187301843,17.44944729,1878.2,1878.1,0.22316812]
[1743187302376,18.23944729,1878.2,1878.1,0.22316812]
[1743187302555,18.64900414,1878.2,1878.1,0.22316812]
[1743187302939,18.64900414,1878.2,1878.1,0.05]
[1743187305371,19.19900414,1878.2,1878.1,1e-05]
[1743187320901,19.19900414,1878.2,1878.1,1e-05]
[1743187321508,5.32566,1877.7,1877.6,5.04101]
[1743187321702,5.32548,1877.8,1877.6,5.622711]
[1743187321889,5.32548,1877.8,1877.6,5.80697191]
[1743187322291,8.32548,1877.8,1877.7,0.7675]
[1743187322773,5.32483,1878.0,1877.7,0.95176091]
[1743187322964,10.64984,1878.0,1877.7,2.14712467]
[1743187323170,10.64984,1878.0,1877.7,1.37962467]
[1743187323497,10.64984,1878.0,1877.8,0.7675]
[1743187323696,5.28986282,1878.1,1877.8,5.32528]
[1743187323899,5.28986282,1878.1,1878.0,0.7675]
[1743187324200,5.28986282,1878.1,1878.0,5.8585]
[1743187324581,5.28986282,1878.1,1878.0,6.04445383]
[1743187324781,5.28986282,1878.1,1878.0,11.36926383]
[1743187325601,3.0,1878.5,1878.3,0.7675]
[1743187325602,5.28986282,1878.5,1878.3,0.7675]
[1743187325807,5.28986282,1878.5,1878.4,5.8585]
[1743187326004,5.28986282,1878.5,1878.4,6.0422594]
[1743187326203,10.61325282,1878.5,1878.4,6.0422594]
[1743187326704,5.28986282,1878.5,1878.4,6.0422594]
[1743187329018,10.61325282,1878.5,1878.4,6.0422594]
[1743187331215,10.61325282,1878.5,1878.4,6.0412594]
[1743187331594,14.44859729,1878.5,1878.4,5.2737594]
[1743187331778,17.44859729,1878.5,1878.4,5.2737594]
[1743187333308,18.25469729,1878.5,1878.4,0.1837594]
[1743187333512,18.80469729,1878.5,1878.4,0.1837594]
[1743187333711,5.32453,1878.1,1878.0,5.089]
[1743187333912,10.61439282,1878.1,1878.0,5.089]
[1743187334109,10.61439282,1878.1,1878.0,5.26630252]
[1743187334589,17.44973729,1878.1,1878.0,0.17730252]
[1743187336791,18.20903729,1878.1,1878.0,0.17730252]
[1743187337004,17.44973729,1878.1,1878.0,0.17730252]
[1743187339629,13.61439282,1878.1,1878.0,0.17730252]
[1743187339934,18.27403729,1878.1,1878.0,0.17730252]
[1743187340446,8.32509,1877.9,1877.8,5.089]
[1743187340618,12.16043447,1877.9,1877.8,5.089]
[1743187340826,12.16043447,1877.9,1877.8,5.26923148]
[1743187344008,12.16043447,1877.9,1877.8,0.18023148]
[1743187344419,5.32538,1877.8,1877.7,5.089]
[1743187345594,5.32538,1877.8,1877.7,5.892]
[1743187347429,5.28986282,1878.1,1877.8,5.32527]
[1743187347631,5.28986282,1878.1,1877.9,0.7582]
[1743187348320,10.61440282,1878.1,1877.9,0.7582]
[1743187349116,10.61440282,1878.1,1878.0,0.7791]
[1743187349117,5.28986282,1878.1,1878.0,0.7791]
[1743187349323,5.28986282,1878.4,1878.1,6.10361]
[1743187349528,5.28986282,1878.4,1878.2,5.089]
[1743187349728,10.61355282,1878.4,1878.2,5.089]
[1743187350232,5.32396,1878.3,1878.2,5.089]
[1743187353836,5.32396,1878.3,1878.2,5.26804086]
[1743187355034,5.32396,1878.3,1878.2,0.17904086]
[1743187355339,5.32396,1878.3,1878.2,5.089]
[1743187355538,5.32396,1878.3,1878.2,5.26804086]